bitfinex/quotes_BTCUSD_20251201
["timestamp","ask_amount","ask_price","bid_price","bid_amount"]
[1764620772987,0.00107412,85518.0,85500.0,0.73966707]
[1764620773444,0.00107412,85518.0,85500.0,0.75114711]
[1764620773649,0.00107412,85518.0,85500.0,0.73966707]
[1764620773862,0.00107412,85518.0,85500.0,0.75114711]
[1764620774670,0.00107412,85518.0,85517.0,0.23387162]
[1764620774809,0.00107412,85518.0,85517.0,0.66383701]
[1764620775010,0.11740741,85554.0,85543.0,0.01169002]
[1764620775226,0.11740741,85554.0,85531.0,0.11740741]
[1764620775227,0.0116903,85541.0,85528.0,0.01169207]
[1764620775431,0.0116918,85530.0,85518.0,0.23386635]
[1764620775757,0.24553695,85527.0,85520.0,0.23386246]
[1764620776014,0.01169248,85525.0,85521.0,0.24555341]
[1764620776217,0.01169235,85526.0,85522.0,0.01169289]
[1764620776775,0.01169139,85533.0,85526.0,0.23384701]
[1764620777023,0.23383881,85529.0,85524.0,0.01169262]
[1764620777235,0.23383881,85529.0,85524.0,0.2455443]
[1764620777439,0.23384198,85528.0,85525.0,0.23384944]
[1764620777732,0.24553075,85529.0,85526.0,0.23384607]
[1764620778095,0.01169139,85533.0,85529.0,0.24552942]
[1764620778332,0.23383105,85532.0,85529.0,0.06430623]
[1764620778482,0.24552258,85532.0,85529.0,0.06430623]
[1764620778694,0.23378627,85549.0,85542.0,0.23380066]
[1764620778932,0.24550495,85538.0,85533.0,0.01169139]
[1764620779263,0.01169043,85540.0,85535.0,0.245511]
[1764620779438,0.23381161,85539.0,85536.0,0.01169098]
[1764620779761,0.24550218,85539.0,85536.0,0.23381966]
[1764620779965,0.23381438,85538.0,85535.0,0.01169112]
[1764620780177,0.23381438,85538.0,85535.0,0.24551287]
[1764620780571,0.01169057,85539.0,85536.0,0.23381964]
[1764620780777,0.01169057,85539.0,85536.0,0.24551062]
[1764620781016,0.01169057,85539.0,85536.0,0.23381964]
[1764620781017,0.24550217,85539.0,85536.0,0.23381964]
[1764620781192,0.01169112,85535.0,85530.0,0.0302918]
[1764620781395,0.01169139,85533.0,85527.0,0.23384224]
[1764620781691,0.01169207,85528.0,85525.0,0.0186]
[1764620781894,0.23384701,85526.0,85525.0,0.0186]
[1764620782266,0.23385593,85523.0,85521.0,0.00011643]
[1764620782455,0.35126536,85522.0,85521.0,0.00011643]
[1764620782655,0.23385795,85522.0,85521.0,0.00011643]
[1764620784574,0.23385795,85522.0,85521.0,0.00211643]
[1764620787926,0.11740741,85524.0,85521.0,0.00211643]
[1764620788157,0.23385795,85522.0,85521.0,0.00211643]
[1764620789900,0.23385795,85522.0,85521.0,0.00011643]
[1764620790237,0.55685795,85522.0,85521.0,0.00211643]
[1764620790437,0.5820045,85522.0,85521.0,0.00211643]
[1764620790662,0.60034577,85522.0,85521.0,0.00211643]
[1764620790836,0.57519922,85522.0,85521.0,0.00211643]
[1764620791183,0.66287103,85522.0,85521.0,0.00011643]
[1764620792588,0.55691539,85501.0,85500.0,0.00107423]
[1764620792816,0.69947162,85501.0,85500.0,0.00117405]
[1764620794051,0.69947162,85501.0,85500.0,0.00317405]
[1764620795437,0.76199461,85501.0,85500.0,0.00317405]
[1764620795621,0.80394925,85501.0,85500.0,0.00317405]
[1764620795820,0.76199461,85501.0,85500.0,0.00317405]
[1764620796417,0.82592657,85501.0,85500.0,0.00117405]
[1764620796727,0.76199461,85501.0,85500.0,1e-08]
[1764620797144,0.82587938,85501.0,85500.0,1e-08]
[1764620797512,0.82487938,85501.0,85500.0,1e-08]
[1764620798085,0.82587938,85501.0,85500.0,1e-08]
[1764620798367,0.76299461,85501.0,85500.0,1e-08]
[1764620799008,0.78159461,85501.0,85500.0,1e-08]
[1764620799251,0.82346928,85501.0,85500.0,1e-08]
[1764620799423,0.78159461,85501.0,85500.0,1e-08]
[1764620802054,0.01169946,85474.0,85464.0,0.00860182]
[1764620802258,0.01169905,85477.0,85471.0,0.23399712]
[1764620802415,0.23398932,85474.0,85472.0,0.02573974]
[1764620802602,0.01169932,85475.0,85472.0,0.02573974]
[1764620802603,0.2456865,85475.0,85472.0,0.02573974]
[1764620802808,0.01169836,85482.0,85472.0,0.23399209]
[1764620803032,0.24568038,85477.0,85473.0,0.24569034]
[1764620803242,0.323,85487.0,85475.0,0.24568578]
[1764620803442,0.24567126,85481.0,85476.0,0.24568037]
[1764620803616,0.323,85487.0,85477.0,0.01169905]
[1764620803828,0.23397041,85481.0,85478.0,0.2632266]
[1764620804047,0.24566891,85481.0,85478.0,0.2632266]
[1764620804254,0.323,85487.0,85478.0,0.01169891]
[1764620804449,0.01169836,85482.0,85479.0,0.23397501]
[1764620804659,0.2456406,85491.0,85485.0,0.2456546]
[1764620804859,0.24564584,85489.0,85485.0,0.2456546]
[1764620805195,0.24564584,85489.0,85486.0,0.07369843]
[1764620805398,0.23395236,85488.0,85485.0,0.2456546]
[1764620805558,0.24564198,85491.0,85485.0,0.2456546]
[1764620805757,0.24562985,85495.0,85490.0,0.01169727]
[1764620806161,0.24562985,85495.0,85492.0,0.23394001]
[1764620806404,0.11740741,85501.0,85494.0,0.24563029]
[1764620806614,0.01169686,85493.0,85487.0,0.01169768]
[1764620806818,0.24563444,85493.0,85490.0,0.24564254]
[1764620806973,0.01169686,85493.0,85490.0,0.24564254]
[1764620807422,0.01169659,85495.0,85492.0,0.23394001]
[1764620807629,0.23392974,85496.0,85493.0,0.23393638]
[1764620807829,0.23393181,85495.0,85491.0,0.24563892]
[1764620808169,0.23393689,85494.0,85492.0,0.00025883]
[1764620808371,0.24563361,85494.0,85492.0,0.00025883]
[1764620808508,0.01169659,85495.0,85492.0,0.00025883]
[1764620808705,0.23393728,85493.0,85492.0,0.00025883]
[1764620809936,0.23393728,85493.0,85492.0,0.00125883]
[1764620812344,0.23393454,85494.0,85492.0,0.00125883]
[1764620812546,0.23393728,85493.0,85492.0,0.00125883]
[1764620813129,0.23393728,85493.0,85492.0,0.00025883]
[1764620813530,0.01169659,85495.0,85492.0,0.00125883]
[1764620813774,0.23393728,85493.0,85492.0,0.00025883]
[1764620814214,0.23393728,85493.0,85492.0,0.00125883]
[1764620815378,0.55693728,85493.0,85492.0,0.00025883]
[1764620815606,0.58211641,85493.0,85492.0,0.00125883]
[1764620815812,0.58211641,85493.0,85492.0,0.00025883]
[1764620816017,0.6446394,85493.0,85492.0,0.00025883]
[1764620816236,0.6446394,85493.0,85492.0,0.00125883]
[1764620816971,0.6446394,85493.0,85492.0,0.00025883]
[1764620817170,0.6493302,85493.0,85492.0,0.00025883]
[1764620817594,0.66113789,85493.0,85492.0,0.00025883]
[1764620817809,0.66113789,85493.0,85492.0,1e-08]
[1764620817999,0.61947395,85488.0,85487.0,1e-08]
[1764620818211,0.66325308,85488.0,85487.0,1e-08]
[1764620818667,0.69940876,85488.0,85487.0,1e-08]
[1764620818870,0.66325308,85488.0,85487.0,1e-08]
[1764620819252,0.66425308,85488.0,85487.0,1e-08]
[1764620820286,0.61948216,85485.0,85484.0,0.00025886]
[1764620820493,0.64504873,85485.0,85484.0,0.00025886]
[1764620821787,0.5570194,85463.0,85452.0,0.00316412]
[1764620821991,0.66332152,85463.0,85452.0,0.00316412]
[1764620822306,0.66801425,85463.0,85452.0,0.00316412]
[1764620822716,0.66801425,85463.0,85462.0,1e-08]
[1764620822982,0.78542166,85463.0,85462.0,1e-08]
[1764620823195,0.95666987,85463.0,85462.0,1e-08]
[1764620823467,0.61956977,85453.0,85452.0,0.00316412]
[1764620823784,0.6633489,85453.0,85452.0,0.00316412]
[1764620824644,0.02517913,85453.0,85452.0,0.00316412]
[1764620824846,0.01170165,85458.0,85452.0,0.00316412]
[1764620824847,0.23404192,85455.0,85452.0,0.00316412]
[1764620825055,0.23404568,85454.0,85452.0,0.00316412]
[1764620825280,0.25921472,85454.0,85452.0,0.00316412]
[1764620826304,0.25921472,85454.0,85452.0,0.00516412]
[1764620826540,0.25921472,85454.0,85452.0,0.00316412]
[1764620827005,0.25921472,85454.0,85452.0,0.00516412]
[1764620827980,0.25921472,85454.0,85452.0,0.00316412]
[1764620828483,0.25921472,85454.0,85453.0,0.00100351]
[1764620828484,0.23404568,85454.0,85453.0,0.00100351]
[1764620828810,0.25919288,85454.0,85453.0,0.00100351]
[1764620829159,0.23404568,85454.0,85453.0,0.00100351]
[1764620829808,0.25918851,85454.0,85453.0,0.00100351]
[1764620830019,0.58218851,85454.0,85453.0,0.00400351]
[1764620831282,0.58218851,85454.0,85453.0,0.00100351]
[1764620831505,0.58218851,85454.0,85453.0,0.00200351]
[1764620831705,0.34814283,85454.0,85453.0,0.00200351]
[1764620831911,0.58218851,85454.0,85453.0,0.00200351]
[1764620832930,0.60078851,85454.0,85453.0,0.00200351]
[1764620833095,0.58218851,85454.0,85453.0,0.00200351]
[1764620833293,0.55704568,85454.0,85453.0,0.00200351]
[1764620833751,0.23404568,85454.0,85453.0,0.00200351]
[1764620834370,0.23404568,85454.0,85453.0,0.00100351]
[1764620834577,0.23404568,85454.0,85453.0,0.00200351]
[1764620835499,0.23404568,85454.0,85453.0,0.00100351]
[1764620835500,0.58216776,85454.0,85453.0,0.00100351]
[1764620835673,0.64469075,85454.0,85453.0,0.00400351]
[1764620835845,0.64469075,85454.0,85453.0,0.00100351]
[1764620836245,0.38552299,85453.0,85452.0,0.00316412]
[1764620836447,0.55707965,85441.0,85440.0,0.0004]
[1764620836667,0.66332472,85441.0,85440.0,0.0004]
[1764620837134,0.66332472,85441.0,85440.0,0.00082096]
[1764620837339,2.66332472,85441.0,85440.0,1e-08]
[1764620837632,2.7004319,85441.0,85440.0,1e-08]
[1764620837860,2.66332472,85441.0,85440.0,1e-08]
[1764620838196,2.66432472,85441.0,85440.0,1e-08]
[1764620838396,2.66532472,85441.0,85440.0,1e-08]
[1764620838603,2.66432472,85441.0,85440.0,1e-08]
[1764620839460,2.64572472,85441.0,85440.0,1e-08]
[1764620839668,0.66432472,85441.0,85440.0,1e-08]
[1764620840148,0.64572472,85441.0,85440.0,1e-08]
[1764620840351,0.66332472,85441.0,85440.0,1e-08]
[1764620840590,0.66632472,85441.0,85440.0,1e-08]
[1764620840769,0.66432472,85441.0,85440.0,1e-08]
[1764620840944,0.66632472,85441.0,85440.0,1e-08]
[1764620841153,0.66532472,85441.0,85440.0,1e-08]
[1764620841367,0.66632472,85441.0,85440.0,1e-08]
[1764620841571,0.23410431,85432.0,85420.0,0.0004]
[1764620841746,0.55710431,85432.0,85420.0,0.0004]
[1764620841950,0.58222639,85432.0,85431.0,0.00033157]
[1764620843320,0.60082639,85432.0,85431.0,0.00033157]
[1764620843794,0.68198109,85432.0,85431.0,0.00033157]
[1764620844161,0.61918566,85432.0,85431.0,0.00033157]
[1764620844372,0.68170865,85432.0,85431.0,0.00033157]
[1764620844561,0.68270865,85432.0,85431.0,0.00044805]
[1764620844754,0.68370865,85432.0,85431.0,0.00044805]
[1764620844959,0.68170865,85432.0,85431.0,0.00044805]
[1764620845167,0.55713446,85421.0,85420.0,0.0004]
[1764620845431,0.58264357,85421.0,85420.0,0.0004]
[1764620846648,0.62457024,85421.0,85420.0,0.0004]
[1764620846858,0.58264357,85421.0,85420.0,0.0004]
[1764620847275,0.58264357,85421.0,85420.0,0.0014]
[1764620847688,0.34850911,85421.0,85420.0,0.0004]
[1764620847896,0.58264357,85421.0,85420.0,0.0004]
[1764620849196,0.60124357,85421.0,85420.0,0.0004]
[1764620849458,0.58264357,85421.0,85420.0,0.0004]
[1764620850654,0.58264357,85421.0,85420.0,0.00375633]
[1764620853867,0.61410312,85421.0,85420.0,0.00375633]
[1764620854269,0.61410312,85421.0,85420.0,0.00075633]
[1764620854270,0.58264357,85421.0,85420.0,0.00075633]
[1764620855088,0.58264357,85421.0,85420.0,0.00175633]
[1764620856067,0.61410312,85421.0,85420.0,0.00175633]
[1764620856769,0.58264357,85421.0,85420.0,0.00175633]
[1764620858402,0.61410312,85421.0,85420.0,0.00175633]
[1764620858966,0.58264357,85421.0,85420.0,0.00175633]
[1764620860190,0.61410312,85421.0,85420.0,0.00175633]
[1764620860392,0.61415889,85421.0,85420.0,0.00175633]
[1764620860625,0.02550911,85421.0,85420.0,0.00175633]
[1764620860834,0.55752149,85421.0,85420.0,0.00175633]
[1764620861005,0.58264357,85421.0,85420.0,0.00175633]
[1764620861249,0.02550911,85421.0,85420.0,0.00175633]
[1764620861421,0.23452149,85421.0,85420.0,0.00075633]
[1764620861898,0.25964357,85421.0,85420.0,0.00375633]
[1764620862275,0.02550911,85421.0,85420.0,0.23789353]
[1764620862559,0.00038703,85421.0,85420.0,0.00375633]
[1764620862724,0.00038703,85421.0,85420.0,0.03106795]
[1764620863084,0.00038703,85421.0,85420.0,0.26520515]
[1764620863675,0.23452149,85421.0,85420.0,0.03106795]
[1764620864042,0.25964357,85421.0,85420.0,0.03106795]
[1764620864373,0.25964357,85421.0,85420.0,0.00375633]
[1764620864586,0.02550911,85421.0,85420.0,0.00375633]
[1764620864797,0.00038703,85421.0,85420.0,0.23789353]
[1764620865697,0.00038703,85421.0,85420.0,0.24937357]
[1764620866079,0.00038703,85421.0,85420.0,0.24737357]
[1764620866279,0.00038703,85421.0,85420.0,0.34223307]
[1764620867478,0.00038703,85421.0,85420.0,0.33623307]
[1764620867685,0.00038703,85421.0,85420.0,0.09061583]
[1764620867885,0.00038703,85421.0,85420.0,0.00875633]
[1764620868083,0.00038703,85421.0,85420.0,0.24289353]
[1764620868496,0.00038703,85421.0,85420.0,0.24089353]
[1764620868693,0.00038703,85421.0,85420.0,0.00675633]
[1764620868906,0.23452149,85421.0,85420.0,0.00175633]
[1764620869342,0.23452149,85421.0,85420.0,0.00375633]
[1764620869688,0.23452149,85421.0,85420.0,0.00075633]
[1764620869857,0.23452149,85421.0,85420.0,0.00375633]
[1764620870267,0.23452149,85421.0,85420.0,0.00075633]
[1764620870469,0.23452149,85421.0,85420.0,0.00275633]
[1764620870691,0.25975792,85421.0,85420.0,0.00175633]
[1764620871044,0.25975792,85421.0,85420.0,0.00375633]
[1764620871245,0.25975792,85421.0,85420.0,0.00275633]
[1764620871577,0.25975792,85421.0,85420.0,0.00375633]
[1764620872166,0.23452149,85421.0,85420.0,0.00375633]
[1764620872373,0.25975768,85421.0,85420.0,0.00375633]
[1764620872563,0.58275768,85421.0,85420.0,0.00375633]
[1764620873370,0.58275768,85421.0,85420.0,0.00175633]
[1764620873868,0.58275768,85421.0,85420.0,0.00075633]
[1764620875095,0.61430824,85421.0,85420.0,0.00075633]
[1764620879510,0.58275768,85421.0,85420.0,0.00075633]
[1764620880720,0.63290824,85421.0,85420.0,0.00075633]
[1764620880892,0.60135768,85421.0,85420.0,0.00075633]
[1764620881496,0.61972043,85421.0,85420.0,0.00075633]
[1764620882680,0.68224342,85421.0,85420.0,0.00075633]
[1764620884712,0.61972043,85421.0,85420.0,0.00075633]
[1764620886281,0.68224342,85421.0,85420.0,0.00075633]
[1764620888852,0.60112043,85421.0,85420.0,0.00075633]
[1764620889077,0.61972043,85421.0,85420.0,0.00075633]
[1764620890904,0.41673789,85421.0,85420.0,0.00075633]
[1764620891106,0.65087235,85421.0,85420.0,0.00075633]
[1764620891368,0.6139096,85421.0,85420.0,0.00075633]
[1764620891675,0.58237065,85421.0,85420.0,0.00075633]
[1764620891882,0.25937065,85421.0,85420.0,0.00075633]
[1764620892410,0.04205194,85439.0,85432.0,0.23410431]
[1764620892611,0.01170042,85467.0,85432.0,0.59433592]
[1764620892612,0.00011605,85433.0,85432.0,0.59433592]
[1764620893718,0.00111605,85433.0,85432.0,0.71174333]
[1764620894350,0.00111605,85433.0,85432.0,0.58285588]
[1764620894583,0.00111605,85433.0,85432.0,0.27133592]
[1764620894770,0.00111605,85433.0,85432.0,0.25985588]
[1764620894947,0.00011605,85433.0,85432.0,0.25985588]
[1764620895159,0.00011605,85433.0,85432.0,0.26685588]
[1764620895332,0.00011605,85433.0,85432.0,0.26885588]
[1764620895534,0.00011605,85433.0,85432.0,0.23610431]
[1764620895740,0.00011605,85433.0,85432.0,0.23910431]
[1764620895976,0.00011605,85433.0,85432.0,0.24110431]
[1764620897135,0.00011605,85433.0,85432.0,0.25258435]
[1764620897351,0.00011605,85433.0,85432.0,0.24110431]
[1764620898094,0.00011605,85433.0,85432.0,0.23410431]
[1764620898300,0.00011605,85433.0,85432.0,0.23810431]
[1764620898525,0.00011605,85433.0,85432.0,0.23510431]
[1764620898719,0.00011605,85433.0,85432.0,0.001]
[1764620898902,0.00011605,85433.0,85432.0,0.003]
[1764620899280,0.00011605,85433.0,85432.0,0.004]
[1764620899618,0.00011605,85433.0,85432.0,0.001]
[1764620899920,0.00011605,85433.0,85432.0,0.003]
[1764620900522,0.00011605,85433.0,85432.0,0.004]
[1764620901533,0.61659106,85433.0,85432.0,0.004]
[1764620901752,0.61517123,85433.0,85432.0,0.004]
[1764620901953,0.57581762,85433.0,85432.0,0.004]
[1764620902292,0.23412624,85424.0,85420.0,0.0004]
[1764620902717,0.35153365,85424.0,85420.0,0.0004]
[1764620904410,0.37668815,85424.0,85420.0,0.0004]
[1764620904617,0.37768815,85424.0,85420.0,0.0004]
[1764620905958,0.39528815,85424.0,85420.0,0.0004]
[1764620906128,0.71928815,85424.0,85420.0,0.0004]
[1764620906336,0.70068815,85424.0,85420.0,0.0004]
[1764620906511,0.71928815,85424.0,85420.0,0.0004]
[1764620907370,0.78081114,85424.0,85420.0,0.0004]
[1764620907897,0.79917352,85424.0,85420.0,0.0004]
[1764620908500,0.78357352,85424.0,85420.0,0.0004]
[1764620908702,0.72205053,85424.0,85420.0,0.0004]
[1764620908908,0.77208633,85424.0,85420.0,0.0004]
[1764620909309,0.72128815,85424.0,85420.0,0.0004]
[1764620910678,0.71828815,85424.0,85420.0,0.0004]
[1764620911235,0.70068815,85424.0,85420.0,0.0004]
[1764620911406,0.71928815,85424.0,85420.0,0.0004]
[1764620912320,0.70068815,85424.0,85420.0,0.0004]
[1764620912532,0.71928815,85424.0,85420.0,0.0004]
[1764620913725,0.14356191,85424.0,85420.0,0.0004]
[1764620913934,0.14658245,85471.0,85420.0,0.0004]
[1764620913935,0.02548027,85456.0,85447.0,0.01170316]
[1764620914131,0.01169467,85509.0,85500.0,0.00999999]
[1764620914358,0.01169467,85509.0,85474.0,0.01169946]
[1764620914359,0.0116959,85500.0,85490.0,0.00999999]
[1764620914559,0.01169576,85501.0,85490.0,0.00999999]
[1764620914756,0.01169535,85504.0,85490.0,0.00999999]
[1764620915002,0.01169481,85508.0,85500.0,0.00999999]
[1764620915137,0.00011654,85509.0,85500.0,0.01099999]
[1764620915342,0.00011654,85509.0,85507.0,0.23389694]
[1764620915845,0.00011654,85509.0,85500.0,0.00999999]
[1764620916158,0.00011654,85509.0,85501.0,0.23391539]
[1764620916359,0.00011654,85509.0,85507.0,0.23389756]
[1764620916562,0.00011654,85509.0,85500.0,0.00999999]
[1764620916761,0.00011654,85509.0,85504.0,0.23390688]
[1764620916949,0.00011654,85509.0,85502.0,0.23391265]
[1764620917144,0.00011654,85509.0,85500.0,0.00999999]
[1764620917145,0.00011654,85509.0,85507.0,0.001]
[1764620917372,0.00011654,85509.0,85507.0,0.003]
[1764620917583,0.23401237,85509.0,85507.0,0.001]
[1764620917783,0.01169576,85501.0,85479.0,0.01169877]
[1764620918056,0.323,85500.0,85490.0,0.00999999]
[1764620918223,0.01170001,85470.0,85463.0,0.08860014]
[1764620918383,0.0116996,85473.0,85463.0,0.08860014]
[1764620918582,0.01170028,85468.0,85463.0,0.08860014]
[1764620918801,0.01170042,85467.0,85460.0,0.00999999]
[1764620918994,0.24571084,85467.0,85454.0,0.01148004]
[1764620919174,0.1053229,85462.0,85460.0,0.23402635]
[1764620919382,0.10543942,85462.0,85460.0,0.23402635]
[1764620919998,0.10543942,85462.0,85461.0,0.23402487]
[1764620920210,0.10543942,85462.0,85454.0,0.01148004]
[1764620920410,0.10543942,85462.0,85460.0,0.23402501]
[1764620921023,0.10543942,85462.0,85461.0,0.001]
[1764620921446,0.10543942,85462.0,85460.0,0.23402501]
[1764620921646,0.10543942,85462.0,85460.0,0.23802501]
[1764620921948,0.10543942,85462.0,85460.0,0.23502501]
[1764620922996,0.10543942,85462.0,85460.0,0.23402501]
[1764620923196,0.10543942,85462.0,85461.0,0.003]
[1764620923396,0.10543942,85462.0,85460.0,0.23402501]
[1764620923646,0.10543942,85462.0,85460.0,0.23502501]
[1764620924083,0.3757481,85462.0,85460.0,0.001]
[1764620924295,0.323,85451.0,85440.0,0.00999999]
[1764620924521,0.01868,85450.0,85440.0,0.24408138]
[1764620924751,0.1053229,85449.0,85444.0,0.23407019]
[1764620924970,0.01170151,85459.0,85450.0,0.00999999]
[1764620925176,0.01868,85453.0,85448.0,0.01148004]
[1764620925378,0.1053229,85449.0,85447.0,0.24576502]
[1764620928703,0.03038233,85453.0,85449.0,0.24575957]
[1764620928898,0.01170247,85452.0,85449.0,0.23405669]
[1764620929355,0.24575223,85452.0,85448.0,0.23405968]
[1764620929653,0.1053229,85449.0,85446.0,0.24576834]
[1764620929867,0.24578073,85443.0,85434.0,0.01170494]
[1764620930072,0.01170357,85444.0,85439.0,0.02318429]
[1764620930276,0.24577273,85445.0,85440.0,0.25578649]
[1764620930477,0.0117037,85443.0,85433.0,0.24580639]
[1764620930676,0.01170384,85442.0,85435.0,0.24579911]
[1764620930881,0.0117037,85443.0,85439.0,0.23408369]
[1764620931109,0.01170343,85445.0,85441.0,0.01170398]
[1764620931245,0.01170343,85445.0,85442.0,0.01170384]
[1764620931463,0.01170329,85446.0,85443.0,0.23407311]
[1764620932075,0.01170329,85446.0,85443.0,0.24577681]
[1764620932472,0.24576945,85446.0,85443.0,0.24577681]
[1764620932678,0.01170302,85448.0,85444.0,0.01170357]
[1764620932875,0.01170192,85456.0,85450.0,0.00999999]
[1764620933080,0.23405226,85451.0,85450.0,0.00999999]
[1764620933313,0.24576644,85447.0,85443.0,0.01648004]
[1764620933521,0.24576644,85447.0,85444.0,0.24577488]
[1764620933845,0.01170302,85448.0,85444.0,0.01270357]
[1764620934047,0.2457638,85448.0,85444.0,0.01670357]
[1764620934229,0.3510867,85448.0,85445.0,0.23406841]
[1764620934768,0.3510867,85448.0,85446.0,0.23406591]
[1764620935251,0.3510867,85448.0,85445.0,0.24577184]
[1764620935461,0.3510867,85448.0,85445.0,0.01170343]
[1764620935654,0.01170302,85448.0,85445.0,0.24577197]
[1764620936037,0.01170302,85448.0,85446.0,0.001]
[1764620936257,0.23406303,85449.0,85446.0,0.001]
[1764620936431,0.01170275,85450.0,85447.0,0.23406177]
[1764620936432,0.24575892,85450.0,85447.0,0.23406177]
[1764620936631,0.33938147,85449.0,85445.0,0.004]
[1764620936974,0.23406322,85447.0,85445.0,0.005]
[1764620937192,0.23406322,85447.0,85445.0,0.001]
[1764620937357,0.23406595,85446.0,85445.0,0.001]
[1764620937541,0.23406322,85447.0,85445.0,0.001]
[1764620937740,0.23406595,85446.0,85445.0,0.001]
[1764620937941,0.23406595,85446.0,85440.0,0.24408007]
[1764620937942,0.23407094,85445.0,85440.0,0.24408007]
[1764620938147,0.01170302,85448.0,85440.0,0.24408007]
[1764620938148,0.23406329,85447.0,85444.0,0.2457748]
[1764620938366,0.24576645,85447.0,85444.0,0.2457748]
[1764620938532,0.24576645,85447.0,85444.0,0.01170357]
[1764620938734,0.24576645,85447.0,85444.0,0.24577412]
[1764620938991,0.23406612,85446.0,85445.0,0.004]
[1764620939189,0.24576645,85447.0,85445.0,0.004]
[1764620939388,0.24576645,85447.0,85444.0,0.24577412]
[1764620939596,0.24576645,85447.0,85444.0,0.25077412]
[1764620939825,1.23237077,85486.0,85444.0,0.25077412]
[1764620939826,0.00011652,85462.0,85458.0,0.01148004]
[1764620940127,0.24574597,85455.0,85450.0,0.00999999]
[1764620940309,0.35105614,85459.0,85453.0,0.2457471]
[1764620940522,0.01170151,85459.0,85455.0,0.01170206]
[1764620940744,0.23403702,85457.0,85454.0,0.24574609]
[1764620941384,0.24573881,85457.0,85454.0,0.0117022]
[1764620941546,0.01170261,85451.0,85445.0,0.001]
[1764620941745,0.01170261,85451.0,85438.0,0.01170439]
[1764620941746,0.23406595,85446.0,85438.0,0.01170439]
[1764620941966,0.24576924,85446.0,85441.0,0.24578134]
[1764620942166,0.23406941,85445.0,85442.0,0.23407634]
[1764620942478,0.24577787,85443.0,85439.0,0.24578693]
[1764620942716,0.24576927,85446.0,85442.0,0.23407691]
[1764620942893,0.24577411,85445.0,85444.0,0.004]
[1764620943097,0.24577411,85445.0,85444.0,0.001]
[1764620944650,0.24577411,85445.0,85440.0,0.24578614]
[1764620944651,0.23407718,85442.0,85440.0,0.24578614]
[1764620945007,0.23407718,85442.0,85440.0,0.01170411]
[1764620945210,0.01170357,85444.0,85440.0,0.0217041]
[1764620945408,0.01170357,85444.0,85440.0,0.25578434]
[1764620945609,0.23407698,85442.0,85440.0,0.24578435]
[1764620945816,0.24578082,85442.0,85440.0,0.001]
[1764620946026,0.23407965,85441.0,85440.0,0.004]
[1764620946222,0.24578082,85442.0,85440.0,0.003]
[1764620946414,0.14658245,85504.0,85440.0,0.01470411]
[1764620946415,0.26442578,85456.0,85440.0,0.01470411]
[1764620946592,0.2340745,85443.0,85441.0,0.01170398]
[1764620946990,0.01170357,85444.0,85440.0,0.01270411]
[1764620947192,0.23407965,85441.0,85440.0,0.001]
[1764620947398,0.55707965,85441.0,85440.0,0.001]
[1764620947605,0.58234431,85441.0,85440.0,0.001]
[1764620947805,0.23410705,85431.0,85430.0,0.00999999]
[1764620948033,0.38337461,85431.0,85430.0,0.00999999]
[1764620948341,0.23412624,85424.0,85420.0,0.0004]
[1764620949046,0.23412624,85424.0,85423.0,0.00037519]
[1764620949401,0.23412624,85424.0,85423.0,0.00537519]
[1764620949586,0.23412624,85424.0,85423.0,0.00737519]
[1764620950427,0.01170576,85428.0,85423.0,0.00737519]
[1764620950621,0.23412624,85424.0,85423.0,0.00737519]
[1764620951237,0.23412624,85424.0,85423.0,0.00037519]
[1764620951449,0.23412624,85424.0,85423.0,0.00637519]
[1764620951855,0.23412624,85424.0,85423.0,0.00037519]
[1764620952055,0.23412624,85424.0,85423.0,0.00537519]
[1764620952402,0.23412624,85424.0,85423.0,0.00737519]
[1764620952403,0.3324577,85424.0,85423.0,0.00737519]
[1764620952596,0.6807075,85424.0,85423.0,0.00737519]
[1764620952965,0.6807075,85424.0,85423.0,0.00237519]
[1764620953320,0.6807075,85424.0,85423.0,0.00737519]
[1764620953649,0.58237604,85424.0,85423.0,0.00737519]
[1764620954006,0.60105604,85424.0,85423.0,0.00537519]
[1764620954238,0.60105604,85424.0,85423.0,0.00737519]
[1764620954616,0.60105604,85424.0,85423.0,0.00537519]
[1764620954821,0.60105604,85424.0,85423.0,0.00037519]
[1764620955254,0.716282,85424.0,85423.0,0.00037519]
[1764620956112,0.60105604,85424.0,85423.0,0.00037519]
[1764620957719,0.58237604,85424.0,85423.0,0.00037519]
[1764620958122,0.60105604,85424.0,85423.0,0.00037519]
[1764620964274,0.58237604,85424.0,85423.0,0.00037519]
[1764620964498,0.60105604,85424.0,85423.0,0.00037519]
[1764620964702,0.77880499,85424.0,85423.0,0.00037519]
[1764620969498,0.82076488,85424.0,85423.0,0.00037519]
[1764620971418,0.77880499,85424.0,85423.0,0.00037519]
[1764620972820,0.66357903,85424.0,85423.0,0.00037519]
[1764620974540,0.25937604,85424.0,85423.0,0.00037519]
[1764620974921,0.58237604,85424.0,85423.0,0.00037519]
[1764620975322,0.61387627,85424.0,85423.0,0.00037519]
[1764620975543,0.58237604,85424.0,85423.0,0.00037519]
[1764620975743,0.697602,85424.0,85423.0,0.00037519]
[1764620975928,0.58237604,85424.0,85423.0,0.00037519]
[1764620980090,0.40917036,85424.0,85423.0,0.00037519]
[1764620981277,0.44074743,85424.0,85423.0,0.00037519]
[1764620982141,0.451176,85424.0,85423.0,0.00037519]
[1764620982347,0.52439632,85424.0,85423.0,0.00037519]
[1764620982544,0.40917036,85424.0,85423.0,0.00037519]
[1764620986166,0.42781036,85424.0,85423.0,0.00037519]
[1764620987245,0.46997504,85424.0,85423.0,0.00037519]
[1764620988880,0.40917036,85424.0,85423.0,0.00037519]
[1764620989113,0.08617036,85424.0,85423.0,0.00037519]
[1764620989329,0.0252498,85424.0,85423.0,0.00037519]
[1764620989498,0.23412624,85424.0,85423.0,0.00037519]
[1764620989704,0.25937604,85424.0,85423.0,0.00037519]
[1764620990047,0.25937604,85424.0,85423.0,0.00137519]
[1764620991080,0.25937604,85424.0,85423.0,0.00337519]
[1764620993022,0.25937604,85424.0,85423.0,0.00037519]
[1764620993391,0.25937604,85424.0,85423.0,0.00337519]
[1764620993592,0.58237604,85424.0,85423.0,0.00337519]
[1764620994635,0.58237604,85424.0,85423.0,0.00037519]
[1764620996147,0.25937604,85424.0,85423.0,0.00037519]
[1764620997143,0.25937604,85424.0,85423.0,0.00137519]
[1764620997751,0.25937604,85424.0,85423.0,0.00037519]
[1764621000615,0.29095515,85424.0,85423.0,0.00037519]
[1764621001767,0.25937604,85424.0,85423.0,0.00037519]
[1764621003227,0.0252498,85424.0,85423.0,0.00037519]
[1764621003424,0.23412624,85424.0,85423.0,0.00037519]
[1764621003785,0.23412428,85425.0,85423.0,0.00037519]
[1764621004083,0.23412428,85425.0,85423.0,0.00137519]
[1764621004084,0.23412624,85424.0,85423.0,0.00137519]
[1764621004321,0.23412624,85424.0,85423.0,0.00337519]
[1764621004530,0.43847341,85424.0,85423.0,0.00337519]